{"text_format":"3","workbook":"xlsx","n_sheets":1,"sheets":["Jānopērk"],"not_rendered":{"images":1,"defined_names":3},"read":"whole","date_system":"1900"}

{"sheet":"Jānopērk","index":0,"n_rows":31,"n_cols":8,"rows_kept":31,"merged":[[1,1,1,2]]}
[null,"Pārtikas preču iepirkumu saraksts"]
[null,"DATUMS"]
[null,"Vai gatavs?","Prece","Kategorija","Skaits","Cena","Kopējā cena","Zīmols/piezīmes"]
[null,null,"Apelsīni","Produkti",null,null,{"$f":"IFERROR(SUM(PārtikasPrečuIepirkumuSaraksts[Skaits]*PārtikasPrečuIepirkumuSaraksts[Cena]), \"\")","v":{"v":0,"d":"0.00 €"}}]
[null,null,"Āboli","Produkti",null,null,{"$f":"IFERROR(SUM(PārtikasPrečuIepirkumuSaraksts[Skaits]*PārtikasPrečuIepirkumuSaraksts[Cena]), \"\")","v":{"v":0,"d":"0.00 €"}}]
[null,null,"Banāni","Produkti",null,null,{"$f":"IFERROR(SUM(PārtikasPrečuIepirkumuSaraksts[Skaits]*PārtikasPrečuIepirkumuSaraksts[Cena]), \"\")","v":{"v":0,"d":"0.00 €"}}]
[null,null,"Salāti","Produkti",null,null,{"$f":"IFERROR(SUM(PārtikasPrečuIepirkumuSaraksts[Skaits]*PārtikasPrečuIepirkumuSaraksts[Cena]), \"\")","v":{"v":0,"d":"0.00 €"}}]
[null,null,"Tomāti","Produkti",null,null,{"$f":"IFERROR(SUM(PārtikasPrečuIepirkumuSaraksts[Skaits]*PārtikasPrečuIepirkumuSaraksts[Cena]), \"\")","v":{"v":0,"d":"0.00 €"}},"  "]
[null,null,"Piens ","Piena produkti",null,null,{"$f":"IFERROR(SUM(PārtikasPrečuIepirkumuSaraksts[Skaits]*PārtikasPrečuIepirkumuSaraksts[Cena]), \"\")","v":{"v":0,"d":"0.00 €"}}]
[null,null,"Siers","Piena produkti",null,null,{"$f":"IFERROR(SUM(PārtikasPrečuIepirkumuSaraksts[Skaits]*PārtikasPrečuIepirkumuSaraksts[Cena]), \"\")","v":{"v":0,"d":"0.00 €"}}]
[null,null,"Olas","Piena produkti",null,null,{"$f":"IFERROR(SUM(PārtikasPrečuIepirkumuSaraksts[Skaits]*PārtikasPrečuIepirkumuSaraksts[Cena]), \"\")","v":{"v":0,"d":"0.00 €"}}]
[null,null,"Biezpiens","Piena produkti",null,null,{"$f":"IFERROR(SUM(PārtikasPrečuIepirkumuSaraksts[Skaits]*PārtikasPrečuIepirkumuSaraksts[Cena]), \"\")","v":{"v":0,"d":"0.00 €"}}]
[null,null,"Liellopu gaļa","Gaļa",null,null,{"$f":"IFERROR(SUM(PārtikasPrečuIepirkumuSaraksts[Skaits]*PārtikasPrečuIepirkumuSaraksts[Cena]), \"\")","v":{"v":0,"d":"0.00 €"}}]
[null,null,"Vistas gaļa","Gaļa",null,null,{"$f":"IFERROR(SUM(PārtikasPrečuIepirkumuSaraksts[Skaits]*PārtikasPrečuIepirkumuSaraksts[Cena]), \"\")","v":{"v":0,"d":"0.00 €"}}]
[null,null,"Šķiņķis","Gaļa",null,null,{"$f":"IFERROR(SUM(PārtikasPrečuIepirkumuSaraksts[Skaits]*PārtikasPrečuIepirkumuSaraksts[Cena]), \"\")","v":{"v":0,"d":"0.00 €"}}]
[null,null,"Sula","Dzērieni",null,null,{"$f":"IFERROR(SUM(PārtikasPrečuIepirkumuSaraksts[Skaits]*PārtikasPrečuIepirkumuSaraksts[Cena]), \"\")","v":{"v":0,"d":"0.00 €"}}]
[null,null,"Kafija","Dzērieni",null,null,{"$f":"IFERROR(SUM(PārtikasPrečuIepirkumuSaraksts[Skaits]*PārtikasPrečuIepirkumuSaraksts[Cena]), \"\")","v":{"v":0,"d":"0.00 €"}}]
[null,null,"Tēja","Dzērieni",null,null,{"$f":"IFERROR(SUM(PārtikasPrečuIepirkumuSaraksts[Skaits]*PārtikasPrečuIepirkumuSaraksts[Cena]), \"\")","v":{"v":0,"d":"0.00 €"}}]
[null,null,"Ūdens","Dzērieni",null,null,{"$f":"IFERROR(SUM(PārtikasPrečuIepirkumuSaraksts[Skaits]*PārtikasPrečuIepirkumuSaraksts[Cena]), \"\")","v":{"v":0,"d":"0.00 €"}}]
[null,null,"Nūdeles","Makaroni",null,null,{"$f":"IFERROR(SUM(PārtikasPrečuIepirkumuSaraksts[Skaits]*PārtikasPrečuIepirkumuSaraksts[Cena]), \"\")","v":{"v":0,"d":"0.00 €"}}]
[null,null,"Rīsi","Makaroni",null,null,{"$f":"IFERROR(SUM(PārtikasPrečuIepirkumuSaraksts[Skaits]*PārtikasPrečuIepirkumuSaraksts[Cena]), \"\")","v":{"v":0,"d":"0.00 €"}}]
[null,null,"Konservi","Zupa",null,null,{"$f":"IFERROR(SUM(PārtikasPrečuIepirkumuSaraksts[Skaits]*PārtikasPrečuIepirkumuSaraksts[Cena]), \"\")","v":{"v":0,"d":"0.00 €"}}]
[null,null,"Garšvielu maisījums","Zupa",null,null,{"$f":"IFERROR(SUM(PārtikasPrečuIepirkumuSaraksts[Skaits]*PārtikasPrečuIepirkumuSaraksts[Cena]), \"\")","v":{"v":0,"d":"0.00 €"}}]
[null,null,"Maize","Konditorejas izstrādājumi",null,null,{"$f":"IFERROR(SUM(PārtikasPrečuIepirkumuSaraksts[Skaits]*PārtikasPrečuIepirkumuSaraksts[Cena]), \"\")","v":{"v":0,"d":"0.00 €"}}]
[null,null,"Kartupeļu čipsi","Uzkodas",null,null,{"$f":"IFERROR(SUM(PārtikasPrečuIepirkumuSaraksts[Skaits]*PārtikasPrečuIepirkumuSaraksts[Cena]), \"\")","v":{"v":0,"d":"0.00 €"}}]
[null,null,"Kliņģeri","Uzkodas",null,null,{"$f":"IFERROR(SUM(PārtikasPrečuIepirkumuSaraksts[Skaits]*PārtikasPrečuIepirkumuSaraksts[Cena]), \"\")","v":{"v":0,"d":"0.00 €"}}]
[null,null,"Saldējums","Uzkodas",null,null,{"$f":"IFERROR(SUM(PārtikasPrečuIepirkumuSaraksts[Skaits]*PārtikasPrečuIepirkumuSaraksts[Cena]), \"\")","v":{"v":0,"d":"0.00 €"}}]
[null,null,"Cepumi","Uzkodas",null,null,{"$f":"IFERROR(SUM(PārtikasPrečuIepirkumuSaraksts[Skaits]*PārtikasPrečuIepirkumuSaraksts[Cena]), \"\")","v":{"v":0,"d":"0.00 €"}}]
[null,null,"Papīra šķīvji","Piederumi",null,null,{"$f":"IFERROR(SUM(PārtikasPrečuIepirkumuSaraksts[Skaits]*PārtikasPrečuIepirkumuSaraksts[Cena]), \"\")","v":{"v":0,"d":"0.00 €"}}]
[null,null,"Salvetes","Piederumi",null,null,{"$f":"IFERROR(SUM(PārtikasPrečuIepirkumuSaraksts[Skaits]*PārtikasPrečuIepirkumuSaraksts[Cena]), \"\")","v":{"v":0,"d":"0.00 €"}}]
[{"$nulls":6},{"$f":"SUBTOTAL(109,PārtikasPrečuIepirkumuSaraksts[Kopējā cena])","v":{"v":0,"d":"0.00 €"}}]